[Event "12th Arad Open 2019"]
[Site "Arad"]
[Date "2019.07.30"]
[Round "8.37"]
[White "Bulau, Andrei-Cristian"]
[Black "Pislariu, Stefanel-Vasilica"]
[Result "0-1"]
[ECO "A67"]
[WhiteElo "2169"]
[BlackElo "1934"]
[Annotator "NA"]
[PlyCount "94"]
[EventDate "2019.07.24"]
[EventType "swiss"]
[EventCountry "ROU"]
[SourceTitle "playchess.com"]
[Source "ChessBase"]
[SourceQuality "1"]
[TimeControl "40/5400+30:900+30"]

1. d4 {[%emt 0:00:00]} Nf6 {[%emt 0:00:00]} 2. c4 {[%emt 0:00:00]} e6 {[%emt 0:00:00]} 3. Nc3 {[%emt 0:00:00]} c5 {[%emt 0:00:48]} 4. d5 {[%emt 0:00:00]} exd5 {[%emt 0:00:05]} 5. cxd5 {[%emt 0:00:00]} d6 {[%emt 0:00:04]} 6. e4 {[%emt 0:00:06]} g6 {[%emt 0:00:17]} 7. f4 {[%emt 0:00:05]} Bg7 {[%emt 0:00:38]} 8. Bb5+ {[%emt 0:00:04]} Nfd7 {[%emt 0:00:42]} 9. Be2 {[%emt 0:00:10]} O-O {[%emt 0:02:05]} 10. Nf3 {[%emt 0:00:03]} Re8 {[%emt 0:01:01]} 11. O-O {[%emt 0:00:05]} Na6 {[%emt 0:05:12]} 12. f5 {[%emt 0:01:50]} Ne5 {[%emt 0:05:42]} 13. Nxe5 {[%emt 0:01:34]} Bxe5 {[%emt 0:00:17]} 14. Bf4 {[%emt 0:00:02]} Bd4+ {[%emt 0:03:04]} 15. Kh1 {[%emt 0:00:20]} Nc7 {[%emt 0:01:04]} 16. Qd2 {[%emt 0:01:54]} b5 {[%emt 0:05:42]} 17. fxg6 {[%emt 0:04:46]} hxg6 {[%emt 0:03:41]} 18. Nxb5 {[%emt 0:05:08]} Nxb5 {[%emt 0:06:25]} 19. Bxb5 {[%emt 0:00:07]} Rxe4 {[%emt 0:07:36]} 20. Bg5 {[%emt 0:00:31]} f6 {[%emt 0:13:51]} 21. Bd3 {[%emt 0:02:08]} Rg4 {[%emt 0:00:36]} 22. Bf4 {[%emt 0:01:05]} g5 {[%emt 0:02:11]} 23. Bg3 {[%emt 0:00:29]} Rxg3 {[%emt 0:01:50]} 24. hxg3 {[%emt 0:00:01]} Qf8 {[%emt 0:01:53]} 25. Rf2 {[%emt 0:00:04]} Bd7 {[%emt 0:04:11]} 26. Re1 {[%emt 0:01:16]} Re8 {[%emt 0:01:51]} 27. Kg1 {[%emt 0:01:05]} Rxe1+ {[%emt 0:02:27]} 28. Qxe1 {[%emt 0:00:02]} Qe8 {[%emt 0:00:29]} 29. Kf1 {[%emt 0:01:10]} Qxe1+ {[%emt 0:00:23]} 30. Kxe1 {[%emt 0:00:05]} Bxf2+ {[%emt 0:00:06]} 31. Kxf2 {[%emt 0:00:02]} f5 {[%emt 0:02:15]} 32. Ke3 {[%emt 0:01:16]} Kf7 {[%emt 0:00:23]} 33. Ba6 {[%emt 0:08:11]} Kf6 {[%emt 0:02:50]} 34. Kd3 {[%emt 0:00:06]} Ke5 {[%emt 0:00:34]} 35. Kc4 {[%emt 0:00:04]} f4 {[%emt 0:01:56]} 36. gxf4+ {[%emt 0:00:05]} gxf4 {[%emt 0:00:19]} 37. b4 {[%emt 0:01:55]} cxb4 {[%emt 0:00:35]} 38. Kxb4 {[%emt 0:00:01]} Kxd5 {[%emt 0:00:22]} 39. Kc3 {[%emt 0:00:05]} Bc6 {[%emt 0:00:40]} 40. Bc8 {[%emt 0:00:00]} Kc5 {[%emt 0:00:00]} 41. Bh3 {[%emt 0:04:32]} Bb5 {[%emt 0:01:11]} 42. Kd2 {[%emt 0:01:01]} Kd4 {[%emt 0:00:26]} 43. Bg4 {[%emt 0:01:01]} Bc6 {[%emt 0:00:30]} 44. Bh3 {[%emt 0:00:03]} Bd5 {[%emt 0:00:27]} 45. a3 {[%emt 0:00:01]} Be4 {[%emt 0:00:15]} 46. Ke2 {[%emt 0:00:12]} Kc3 {[%emt 0:00:41]} 47. Kf2 {[%emt 0:00:06]} Kb3 {[%emt 0:02:11]} 0-1

[Event "12th Arad Open 2019"]
[Site "Arad"]
[Date "2019.07.30"]
[Round "8.38"]
[White "Turlea, Constantin"]
[Black "Weinzettl, Ernst"]
[Result "1/2-1/2"]
[ECO "A49"]
[WhiteElo "1938"]
[BlackElo "2165"]
[Annotator "NA"]
[PlyCount "108"]
[EventDate "2019.07.24"]
[EventType "swiss"]
[EventCountry "ROU"]
[SourceTitle "playchess.com"]
[Source "ChessBase"]
[SourceQuality "1"]
[TimeControl "40/5400+30:900+30"]

1. d4 {[%emt 1:19:49]} Nf6 {[%emt 0:00:00]} 2. Nf3 {[%emt 0:00:00]} g6 {[%emt 0:00:06]} 3. g3 {[%emt 0:00:00]} Bg7 {[%emt 0:00:24]} 4. Bg2 {[%emt 0:00:00]} O-O {[%emt 0:00:13]} 5. O-O {[%emt 0:00:00]} d6 {[%emt 0:00:26]} 6. b3 {[%emt 0:00:00]} b5 {[%emt 0:12:55]} 7. Bb2 {[%emt 0:00:00]} Bb7 {[%emt 0:00:40]} 8. c4 {[%emt 0:00:00]} a6 {[%emt 0:02:35]} 9. Nbd2 {[%emt 0:00:00]} Nbd7 {[%emt 0:08:27]} 10. Qc2 {[%emt 0:00:00]} Rb8 {[%emt 0:00:27]} 11. Rab1 {[%emt 0:00:00]} Re8 {[%emt 0:06:54]} 12. Rfe1 {[%emt 0:00:00]} bxc4 {[%emt 0:09:06]} 13. bxc4 {[%emt 0:00:00]} e6 {[%emt 0:21:54]} 14. e4 {[%emt 0:00:00]} e5 {[%emt 0:01:31]} 15. c5 {[%emt 0:00:00]} dxc5 {[%emt 0:01:27]} 16. dxc5 {[%emt 0:00:00]} Bc6 {[%emt 0:02:12]} 17. Nc4 {[%emt 0:00:00]} Bxe4 {[%emt 0:14:34]} 18. Rxe4 {[%emt 0:00:00]} Nxe4 {[%emt 0:00:08]} 19. Qxe4 {[%emt 0:00:00]} Nxc5 {[%emt 0:00:08]} 20. Qc2 {[%emt 0:00:00]} Qd3 {[%emt 0:07:18]} 21. Rc1 {[%emt 0:00:00]} e4 {[%emt 0:02:04]} 22. Nfd2 {[%emt 0:02:50]} Bxb2 {[%emt 0:05:06]} 23. Nxb2 {[%emt 0:00:49]} Qxc2 {[%emt 0:00:09]} 24. Rxc2 {[%emt 0:00:06]} f5 {[%emt 0:00:31]} 25. Bf1 {[%emt 0:01:12]} Red8 {[%emt 0:00:25]} 26. Ndc4 {[%emt 0:05:23]} Ne6 {[%emt 0:00:23]} 27. Ne5 {[%emt 0:02:00]} Nd4 {[%emt 0:02:02]} 28. Rd2 {[%emt 0:02:49]} Nf3+ {[%emt 0:00:25]} 29. Nxf3 {[%emt 0:00:10]} exf3 {[%emt 0:00:03]} 30. Rc2 {[%emt 0:02:51]} Rb6 {[%emt 0:00:10]} 31. h3 {[%emt 0:02:04]} Re8 {[%emt 0:00:27]} 32. h4 {[%emt 0:02:37]} Re1 {[%emt 0:00:11]} 33. Nd3 {[%emt 0:02:08]} Ra1 {[%emt 0:00:08]} 34. Nb2 {[%emt 0:00:48]} Re6 {[%emt 0:00:14]} 35. Nd3 {[%emt 0:00:30]} Rd6 {[%emt 0:01:37]} 36. Nb2 {[%emt 0:00:20]} Rb6 {[%emt 0:01:21]} 37. Rd2 {[%emt 0:01:05]} Re6 {[%emt 0:00:31]} 38. Nc4 {[%emt 0:00:24]} Re2 {[%emt 0:01:02]} 39. Rd8+ {[%emt 0:00:57]} Kg7 {[%emt 0:00:34]} 40. Rd7+ {[%emt 0:00:05]} Kf6 {[%emt 0:00:00]} 41. Rxc7 {[%emt 0:07:00]} Rc2 {[%emt 0:08:24]} 42. Rc6+ {[%emt 0:04:55]} Kg7 {[%emt 0:00:50]} 43. Ne5 {[%emt 0:01:08]} Rxc6 {[%emt 0:00:23]} 44. Nxc6 {[%emt 0:00:05]} Rxa2 {[%emt 0:02:10]} 45. Nb4 {[%emt 0:00:09]} Ra1 {[%emt 0:00:11]} 46. Nxa6 {[%emt 0:00:07]} h6 {[%emt 0:00:51]} 47. Nc5 {[%emt 0:00:25]} g5 {[%emt 0:00:18]} 48. hxg5 {[%emt 0:00:43]} hxg5 {[%emt 0:00:03]} 49. Ne6+ {[%emt 0:00:13]} Kf6 {[%emt 0:00:02]} 50. Nd4 {[%emt 0:00:07]} g4 {[%emt 0:00:08]} 51. Nc2 {[%emt 0:00:24]} Rc1 {[%emt 0:00:07]} 52. Ne3 {[%emt 0:00:29]} Kg5 {[%emt 0:00:08]} 53. Nd5 {[%emt 0:00:20]} Ra1 {[%emt 0:02:12]} 54. Nf4 {[%emt 0:00:15]} Rb1 {[%emt 0:00:32]} 1/2-1/2

[Event "12th Arad Open 2019"]
[Site "Arad"]
[Date "2019.07.30"]
[Round "8.39"]
[White "Mozes, Ervin"]
[Black "Bucur, Denisa-Andreea"]
[Result "1-0"]
[ECO "A00"]
[WhiteElo "2121"]
[BlackElo "1943"]
[Annotator "NA"]
[PlyCount "103"]
[EventDate "2019.07.24"]
[EventType "swiss"]
[EventCountry "ROU"]
[SourceTitle "playchess.com"]
[Source "ChessBase"]
[SourceQuality "1"]
[TimeControl "40/5400+30:900+30"]

1. g3 {[%emt 0:00:00]} c5 {[%emt 0:00:00]} 2. Bg2 {[%emt 0:00:00]} Nf6 {[%emt 0:00:11]} 3. f4 {[%emt 0:01:09]} d5 {[%emt 0:01:03]} 4. Nf3 {[%emt 0:00:06]} Nc6 {[%emt 0:00:39]} 5. d3 {[%emt 0:02:59]} Bf5 {[%emt 0:01:37]} 6. Nbd2 {[%emt 0:07:16]} Qb6 {[%emt 0:11:59]} 7. c3 {[%emt 0:13:33]} e6 {[%emt 0:22:21]} 8. Qa4 {[%emt 0:09:49]} Qa5 {[%emt 0:12:03]} 9. Qxa5 {[%emt 0:03:36]} Nxa5 {[%emt 0:00:04]} 10. Ne5 {[%emt 0:00:17]} h5 {[%emt 0:03:01]} 11. a3 {[%emt 0:07:30]} Nc6 {[%emt 0:06:44]} 12. Nxc6 {[%emt 0:07:31]} bxc6 {[%emt 0:00:04]} 13. Nf3 {[%emt 0:01:30]} Bd6 {[%emt 0:04:49]} 14. e4 {[%emt 0:01:30]} dxe4 {[%emt 0:01:15]} 15. Ng5 {[%emt 0:00:11]} e5 {[%emt 0:00:52]} 16. O-O {[%emt 0:04:27]} Bd7 {[%emt 0:01:13]} 17. fxe5 {[%emt 0:04:59]} Bxe5 {[%emt 0:00:18]} 18. Nxe4 {[%emt 0:00:07]} Nxe4 {[%emt 0:02:42]} 19. Bxe4 {[%emt 0:02:50]} O-O {[%emt 0:03:30]} 20. Be3 {[%emt 0:04:01]} c4 {[%emt 0:06:19]} 21. d4 {[%emt 0:16:57]} Bc7 {[%emt 0:02:32]} 22. Bf4 {[%emt 0:00:59]} Rfe8 {[%emt 0:03:55]} 23. Bg2 {[%emt 0:07:57]} Bb6 {[%emt 0:03:18]} 24. Rfe1 {[%emt 0:00:05]} Rac8 {[%emt 0:01:27]} 25. Kf2 {[%emt 0:00:08]} Be6 {[%emt 0:01:29]} 26. Re5 {[%emt 0:00:22]} g6 {[%emt 0:00:55]} 27. Rae1 {[%emt 0:00:20]} Bc7 {[%emt 0:04:27]} 28. Rc5 {[%emt 0:00:41]} Bxf4 {[%emt 0:00:36]} 29. gxf4 {[%emt 0:00:02]} Bd5 {[%emt 0:00:26]} 30. Bxd5 {[%emt 0:01:41]} cxd5 {[%emt 0:00:08]} 31. Rxe8+ {[%emt 0:02:15]} Rxe8 {[%emt 0:00:02]} 32. Rxd5 {[%emt 0:00:01]} Rb8 {[%emt 0:00:15]} 33. Rc5 {[%emt 0:00:09]} Rxb2+ {[%emt 0:00:13]} 34. Kg3 {[%emt 0:00:01]} Rb3 {[%emt 0:00:24]} 35. Rxc4 {[%emt 0:00:01]} Rxa3 {[%emt 0:00:07]} 36. f5 {[%emt 0:00:56]} g5 {[%emt 0:03:33]} 37. Rc8+ {[%emt 0:00:07]} Kg7 {[%emt 0:00:09]} 38. d5 {[%emt 0:00:02]} Ra1 {[%emt 0:02:56]} 39. c4 {[%emt 0:00:11]} Kf6 {[%emt 0:01:10]} 40. d6 {[%emt 0:00:00]} Rd1 {[%emt 0:00:00]} 41. c5 {[%emt 0:00:15]} Kxf5 {[%emt 0:03:27]} 42. Kf2 {[%emt 0:02:26]} Ke6 {[%emt 0:04:03]} 43. c6 {[%emt 0:00:25]} Rxd6 {[%emt 0:01:04]} 44. Re8+ {[%emt 0:00:07]} Kf5 {[%emt 0:00:38]} 45. c7 {[%emt 0:00:02]} Rc6 {[%emt 0:00:04]} 46. c8=Q+ {[%emt 0:00:15]} Rxc8 {[%emt 0:00:04]} 47. Rxc8 {[%emt 0:00:11]} Kg4 {[%emt 0:00:26]} 48. Kg2 {[%emt 0:00:17]} f5 {[%emt 0:00:08]} 49. Rc4+ {[%emt 0:01:02]} f4 {[%emt 0:00:04]} 50. h3+ {[%emt 0:00:22]} Kf5 {[%emt 0:00:15]} 51. Rc5+ {[%emt 0:00:18]} Kf6 {[%emt 0:00:12]} 52. h4 {[%emt 0:00:03]} 1-0

[Event "12th Arad Open 2019"]
[Site "Arad"]
[Date "2019.07.30"]
[Round "8.40"]
[White "Tunaru, Alexandru A."]
[Black "Tampea, Radu"]
[Result "1-0"]
[ECO "B30"]
[WhiteElo "2111"]
[BlackElo "1913"]
[Annotator "NA"]
[PlyCount "89"]
[EventDate "2019.07.24"]
[EventType "swiss"]
[EventCountry "ROU"]
[SourceTitle "playchess.com"]
[Source "ChessBase"]
[SourceQuality "1"]
[TimeControl "40/5400+30:900+30"]

1. e4 {[%emt 0:00:00]} c5 {[%emt 0:00:00]} 2. Nf3 {[%emt 0:00:05]} Nc6 {[%emt 0:00:00]} 3. Qe2 {[%emt 0:00:14]} g6 {[%emt 0:03:10]} 4. g3 {[%emt 0:00:18]} Bg7 {[%emt 0:00:07]} 5. Bg2 {[%emt 0:00:08]} e5 {[%emt 0:00:20]} 6. O-O {[%emt 0:04:25]} Nge7 {[%emt 0:02:29]} 7. d3 {[%emt 0:05:04]} O-O {[%emt 0:04:09]} 8. c3 {[%emt 0:09:20]} d6 {[%emt 0:08:02]} 9. a3 {[%emt 0:04:51]} f5 {[%emt 0:12:19]} 10. exf5 {[%emt 0:03:45]} gxf5 {[%emt 0:05:40]} 11. Bg5 {[%emt 0:01:45]} h6 {[%emt 0:09:06]} 12. Bxe7 {[%emt 0:08:11]} Nxe7 {[%emt 0:02:20]} 13. b4 {[%emt 0:02:34]} cxb4 {[%emt 0:05:06]} 14. axb4 {[%emt 0:02:43]} Qc7 {[%emt 0:02:44]} 15. Ra3 {[%emt 0:05:24]} Bd7 {[%emt 0:20:58]} 16. Qa2+ {[%emt 0:04:51]} d5 {[%emt 0:02:57]} 17. Rxa7 {[%emt 0:02:56]} Rxa7 {[%emt 0:00:06]} 18. Qxa7 {[%emt 0:00:13]} Bb5 {[%emt 0:08:35]} 19. c4 {[%emt 0:04:55]} dxc4 {[%emt 0:00:29]} 20. Na3 {[%emt 0:01:08]} Bc6 {[%emt 0:01:36]} 21. dxc4 {[%emt 0:04:13]} Rd8 {[%emt 0:01:37]} 22. b5 {[%emt 0:07:40]} Bxf3 {[%emt 0:00:17]} 23. Bxf3 {[%emt 0:00:20]} e4 {[%emt 0:00:01]} 24. Bg2 {[%emt 0:03:05]} Bd4 {[%emt 0:00:13]} 25. Qa4 {[%emt 0:00:28]} Qc5 {[%emt 0:01:36]} 26. Nb1 {[%emt 0:05:48]} Ng6 {[%emt 0:00:43]} 27. Bh3 {[%emt 0:11:17]} f4 {[%emt 0:02:37]} 28. Qc2 {[%emt 0:01:53]} Qe5 {[%emt 0:00:53]} 29. Kg2 {[%emt 0:03:00]} Kg7 {[%emt 0:01:46]} 30. Nd2 {[%emt 0:00:21]} Re8 {[%emt 0:00:17]} 31. Re1 {[%emt 0:02:03]} f3+ {[%emt 0:00:22]} 32. Kg1 {[%emt 0:00:53]} Bxf2+ {[%emt 0:02:16]} 33. Kxf2 {[%emt 0:00:34]} e3+ {[%emt 0:00:28]} 34. Kxf3 {[%emt 0:00:57]} Rf8+ {[%emt 0:01:19]} 35. Kg2 {[%emt 0:00:21]} Rf2+ {[%emt 0:00:03]} 36. Kg1 {[%emt 0:01:01]} Rxd2 {[%emt 0:00:02]} 37. Qf5 {[%emt 0:00:30]} Qd4 {[%emt 0:00:18]} 38. Qf3 {[%emt 0:00:50]} e2+ {[%emt 0:01:37]} 39. Kg2 {[%emt 0:00:00]} Ne5 {[%emt 0:00:00]} 40. Qxb7+ {[%emt 0:00:00]} Kf6 {[%emt 0:00:00]} 41. Qa8 {[%emt 0:03:29]} Nxc4 {[%emt 0:02:54]} 42. Qh8+ {[%emt 0:00:43]} Kg6 {[%emt 0:00:46]} 43. Qg8+ {[%emt 0:02:52]} Kh5 {[%emt 0:01:30]} 44. Qf7+ {[%emt 0:00:10]} Kg5 {[%emt 0:00:07]} 45. Qf5# {[%emt 0:00:02]} 1-0

[Event "12th Arad Open 2019"]
[Site "Arad"]
[Date "2019.07.31"]
[Round "9.2"]
[White "Schitco, Ivan"]
[Black "Gorodetzky, David"]
[Result "1/2-1/2"]
[ECO "A13"]
[WhiteElo "2462"]
[BlackElo "2461"]
[Annotator "ChessBase"]
[PlyCount "135"]
[EventDate "2019.07.24"]
[EventType "swiss"]
[EventCountry "ROU"]
[SourceTitle "playchess.com"]
[Source "ChessBase"]
[SourceQuality "1"]
[TimeControl "40/5400+30:900+30"]

1. c4 {[%emt 0:00:00]} e6 {[%emt 0:00:27]} 2. g3 {[%emt 0:00:31]} d5 {[%emt 0:00:38]} 3. Bg2 {[%emt 0:00:11]} Nf6 {[%emt 0:00:03]} 4. Nf3 {[%emt 0:00:19]} a6 {[%emt 0:00:54]} 5. b3 {[%emt 0:03:44]} b6 {[%emt 0:11:34]} 6. Bb2 {[%emt 0:03:13]} Bb7 {[%emt 0:00:06]} 7. O-O {[%emt 0:02:10]} Nbd7 {[%emt 0:01:16]} 8. Nc3 {[%emt 0:02:11]} dxc4 {[%emt 0:10:49]} 9. bxc4 {[%emt 0:00:16]} c5 {[%emt 0:00:07]} 10. e3 {[%emt 0:08:08]} Bd6 {[%emt 0:05:47]} 11. Qe2 {[%emt 0:02:40]} O-O {[%emt 0:00:48]} 12. Ne1 {[%emt 0:02:36]} Bxg2 {[%emt 0:12:13]} 13. Kxg2 {[%emt 0:00:08]} Be5 {[%emt 0:03:13]} 14. f4 {[%emt 0:09:28]} Bxc3 {[%emt 0:00:06]} 15. Bxc3 {[%emt 0:00:02]} b5 {[%emt 0:01:21]} 16. cxb5 {[%emt 0:01:44]} axb5 {[%emt 0:00:03]} 17. Qxb5 {[%emt 0:01:12]} Ne4 {[%emt 0:00:10]} 18. Qc4 {[%emt 0:04:40]} Nxc3 {[%emt 0:06:53]} 19. Qxc3 {[%emt 0:00:09]} Nf6 {[%emt 0:01:18]} 20. Nf3 {[%emt 0:02:14]} Qd5 {[%emt 0:02:55]} 21. Rfc1 {[%emt 0:03:42]} Ne4 {[%emt 0:03:51]} 22. Qc4 {[%emt 0:04:51]} Ra3 {[%emt 0:00:02]} 23. Qxd5 {[%emt 0:01:20]} exd5 {[%emt 0:00:02]} 24. Rc2 {[%emt 0:00:31]} Rfa8 {[%emt 0:05:36]} 25. Ng5 {[%emt 0:09:11]} Nxg5 {[%emt 0:00:51]} 26. fxg5 {[%emt 0:00:01]} c4 {[%emt 0:00:10]} 27. Kf3 {[%emt 0:04:19]} Kf8 {[%emt 0:09:07]} 28. Kf4 {[%emt 0:06:20]} Ke7 {[%emt 0:02:04]} 29. Ke5 {[%emt 0:02:15]} R8a5 {[%emt 0:02:05]} 30. Rb2 {[%emt 0:01:51]} f6+ {[%emt 0:02:40]} 31. gxf6+ {[%emt 0:00:28]} gxf6+ {[%emt 0:00:02]} 32. Kf4 {[%emt 0:00:49]} Kf7 {[%emt 0:01:47]} 33. g4 {[%emt 0:04:01]} c3 {[%emt 0:00:46]} 34. dxc3 {[%emt 0:02:33]} Rxc3 {[%emt 0:00:41]} 35. Rd2 {[%emt 0:04:32]} Raa3 {[%emt 0:04:59]} 36. Re1 {[%emt 0:03:22]} Ra4+ {[%emt 0:01:06]} 37. e4 {[%emt 0:02:45]} Rcc4 {[%emt 0:05:04]} 38. Rxd5 {[%emt 0:00:55]} Rxa2 {[%emt 0:00:01]} 39. Rd7+ {[%emt 0:01:35]} Kg6 {[%emt 0:01:15]} 40. h4 {[%emt 0:00:00]} Rf2+ {[%emt 0:00:00]} 41. Kg3 {[%emt 0:04:38]} Rfc2 {[%emt 0:06:40]} 42. Rf1 {[%emt 0:02:06]} R4c3+ {[%emt 0:06:05]} 43. Kf4 {[%emt 0:00:40]} Rc7 {[%emt 0:01:14]} 44. h5+ {[%emt 0:02:10]} Kh6 {[%emt 0:00:01]} 45. Rxc7 {[%emt 0:04:16]} Rxc7 {[%emt 0:00:02]} 46. Kf5 {[%emt 0:00:59]} Re7 {[%emt 0:00:29]} 47. Rd1 {[%emt 0:05:05]} Kg7 {[%emt 0:00:51]} 48. h6+ {[%emt 0:01:06]} Kf7 {[%emt 0:00:02]} 49. Rd5 {[%emt 0:00:09]} Rc7 {[%emt 0:00:44]} 50. Rd6 {[%emt 0:00:52]} Rc5+ {[%emt 0:00:05]} 51. Rd5 {[%emt 0:00:01]} Rc7 {[%emt 0:00:01]} 52. g5 {[%emt 0:01:42]} fxg5 {[%emt 0:00:07]} 53. Rd6 {[%emt 0:00:38]} Ke7 {[%emt 0:05:19]} 54. Ra6 {[%emt 0:01:00]} Kf7 {[%emt 0:05:11]} 55. Kxg5 {[%emt 0:03:33]} Rc5+ {[%emt 0:00:28]} 56. Kf4 {[%emt 0:00:29]} Rh5 {[%emt 0:00:36]} 57. Ra7+ {[%emt 0:01:37]} Kg6 {[%emt 0:00:01]} 58. Rg7+ {[%emt 0:00:44]} Kxh6 {[%emt 0:00:08]} 59. Rg1 {[%emt 0:00:07]} Rg5 {[%emt 0:00:01]} 60. Rh1+ {[%emt 0:01:00]} Kg6 {[%emt 0:00:08]} 61. Rxh7 {[%emt 0:00:28]} Kxh7 {[%emt 0:01:10]} 62. Kxg5 {[%emt 0:00:10]} Kg7 {[%emt 0:00:01]} 63. Kf5 {[%emt 0:00:06]} Kf7 {[%emt 0:00:02]} 64. e5 {[%emt 0:00:06]} Ke7 {[%emt 0:00:06]} 65. e6 {[%emt 0:00:02]} Ke8 {[%emt 0:00:05]} 66. Kf6 {[%emt 0:00:03]} Kf8 {[%emt 0:00:04]} 67. e7+ {[%emt 0:00:02]} Ke8 {[%emt 0:00:05]} 68. Ke6 {[%emt 0:00:02]} 1/2-1/2

[Event "12th Arad Open 2019"]
[Site "Arad"]
[Date "2019.07.31"]
[Round "9.3"]
[White "Soltanici, Ruslan"]
[Black "Bogdan, Dan"]
[Result "1-0"]
[ECO "B34"]
[WhiteElo "2408"]
[BlackElo "2370"]
[Annotator "NA"]
[PlyCount "107"]
[EventDate "2019.07.24"]
[EventType "swiss"]
[EventCountry "ROU"]
[SourceTitle "playchess.com"]
[Source "ChessBase"]
[SourceQuality "1"]
[TimeControl "40/5400+30:900+30"]

1. e4 {[%emt 0:00:00]} c5 {[%emt 0:07:04]} 2. Nf3 {[%emt 0:00:00]} Nc6 {[%emt 0:00:29]} 3. d4 {[%emt 0:01:14]} cxd4 {[%emt 0:00:24]} 4. Nxd4 {[%emt 0:00:08]} g6 {[%emt 0:00:50]} 5. Nc3 {[%emt 0:02:08]} Bg7 {[%emt 0:01:34]} 6. Be3 {[%emt 0:00:16]} Nf6 {[%emt 0:00:48]} 7. Nxc6 {[%emt 0:01:46]} bxc6 {[%emt 0:00:08]} 8. e5 {[%emt 0:00:09]} Ng8 {[%emt 0:00:50]} 9. Bd4 {[%emt 0:00:29]} Qc7 {[%emt 0:04:02]} 10. f4 {[%emt 0:04:03]} f6 {[%emt 0:03:25]} 11. Qe2 {[%emt 0:00:32]} fxe5 {[%emt 0:02:49]} 12. Bxe5 {[%emt 0:02:14]} Bxe5 {[%emt 0:00:49]} 13. fxe5 {[%emt 0:00:09]} Nh6 {[%emt 0:03:16]} 14. O-O-O {[%emt 0:04:01]} Nf7 {[%emt 0:04:39]} 15. e6 {[%emt 0:12:43]} dxe6 {[%emt 0:03:43]} 16. g3 {[%emt 0:02:24]} O-O {[%emt 0:00:59]} 17. Bg2 {[%emt 0:07:34]} Rb8 {[%emt 0:02:01]} 18. Qc4 {[%emt 0:15:01]} Qb6 {[%emt 0:07:38]} 19. Na4 {[%emt 0:05:23]} Qe3+ {[%emt 0:02:05]} 20. Kb1 {[%emt 0:00:23]} Ne5 {[%emt 0:02:42]} 21. Qd4 {[%emt 0:05:53]} Qxd4 {[%emt 0:02:34]} 22. Rxd4 {[%emt 0:00:42]} Rf2 {[%emt 0:01:14]} 23. Bh3 {[%emt 0:00:44]} Kf7 {[%emt 0:04:25]} 24. b3 {[%emt 0:09:17]} Ke8 {[%emt 0:16:02]} 25. Nc5 {[%emt 0:06:48]} Nf3 {[%emt 0:04:01]} 26. Ra4 {[%emt 0:02:45]} Ng5 {[%emt 0:05:07]} 27. Bf1 {[%emt 0:02:06]} e5 {[%emt 0:02:01]} 28. Nd3 {[%emt 0:02:05]} Rf5 {[%emt 0:01:18]} 29. Bg2 {[%emt 0:01:19]} e4 {[%emt 0:01:19]} 30. Bxe4 {[%emt 0:02:12]} Nxe4 {[%emt 0:00:38]} 31. Rxe4 {[%emt 0:00:03]} Rf7 {[%emt 0:03:43]} 32. Ne5 {[%emt 0:03:22]} Rf6 {[%emt 0:02:13]} 33. Rhe1 {[%emt 0:00:13]} Bf5 {[%emt 0:03:03]} 34. Ra4 {[%emt 0:01:24]} Rb7 {[%emt 0:00:43]} 35. g4 {[%emt 0:01:48]} Bc8 {[%emt 0:00:37]} 36. g5 {[%emt 0:04:28]} Re6 {[%emt 0:02:36]} 37. Rae4 {[%emt 0:00:49]} Rc7 {[%emt 0:01:07]} 38. Rh4 {[%emt 0:00:28]} Kf8 {[%emt 0:03:15]} 39. Rxh7 {[%emt 0:00:15]} Kg8 {[%emt 0:01:10]} 40. Rh4 {[%emt 0:00:00]} c5 {[%emt 0:00:00]} 41. Rhe4 {[%emt 0:04:39]} Rd6 {[%emt 0:04:32]} 42. Nc4 {[%emt 0:01:43]} Rdd7 {[%emt 0:00:48]} 43. h4 {[%emt 0:03:15]} Kg7 {[%emt 0:01:14]} 44. Kb2 {[%emt 0:02:12]} Kg8 {[%emt 0:00:29]} 45. R4e3 {[%emt 0:04:29]} Kg7 {[%emt 0:01:31]} 46. Ne5 {[%emt 0:02:25]} Rd6 {[%emt 0:00:56]} 47. Rf1 {[%emt 0:00:53]} Bf5 {[%emt 0:01:47]} 48. h5 {[%emt 0:00:50]} e6 {[%emt 0:01:15]} 49. h6+ {[%emt 0:00:43]} Kh8 {[%emt 0:02:44]} 50. Nc4 {[%emt 0:00:45]} Rd8 {[%emt 0:02:10]} 51. Re5 {[%emt 0:00:20]} Rd5 {[%emt 0:00:32]} 52. Rxd5 {[%emt 0:00:25]} exd5 {[%emt 0:00:06]} 53. Ne3 {[%emt 0:00:13]} Be4 {[%emt 0:00:12]} 54. Rf8+ {[%emt 0:00:18] Bf5} 1-0

[Event "12th Arad Open 2019"]
[Site "Arad"]
[Date "2019.07.31"]
[Round "9.6"]
[White "Bonte, Andrei-Mihai"]
[Black "Jianu, Vlad-Cristian"]
[Result "0-1"]
[ECO "E46"]
[WhiteElo "2337"]
[BlackElo "2523"]
[Annotator "ChessBase"]
[PlyCount "60"]
[EventDate "2019.07.24"]
[EventType "swiss"]
[EventCountry "ROU"]
[SourceTitle "playchess.com"]
[Source "ChessBase"]
[SourceQuality "1"]
[TimeControl "40/5400+30:900+30"]

1. d4 {[%emt 0:00:00]} Nf6 {[%emt 0:00:00]} 2. c4 {[%emt 0:00:54]} e6 {[%emt 0:00:00]} 3. Nc3 {[%emt 0:02:48]} Bb4 {[%emt 0:00:07]} 4. e3 {[%emt 0:00:07]} O-O {[%emt 0:00:12]} 5. Nge2 {[%emt 0:00:06]} c6 {[%emt 0:00:30]} 6. g3 {[%emt 0:11:56]} d5 {[%emt 0:01:49]} 7. Qb3 {[%emt 0:00:32]} Qe7 {[%emt 0:09:40]} 8. Bg2 {[%emt 0:01:57]} Nbd7 {[%emt 0:06:09]} 9. cxd5 {[%emt 0:03:04]} exd5 {[%emt 0:00:22]} 10. O-O {[%emt 0:00:23]} Nb6 {[%emt 0:03:15]} 11. Qc2 {[%emt 0:02:48]} Re8 {[%emt 0:07:07]} 12. f3 {[%emt 0:08:15]} c5 {[%emt 0:13:22]} 13. Nd1 {[%emt 0:10:26]} cxd4 {[%emt 0:04:11]} 14. Nxd4 {[%emt 0:00:06]} Bd7 {[%emt 0:01:17]} 15. b3 {[%emt 0:01:42]} a5 {[%emt 0:20:44]} 16. a4 {[%emt 0:06:36]} Rac8 {[%emt 0:02:36]} 17. Qd3 {[%emt 0:07:53]} Be6 {[%emt 0:02:30]} 18. Bb2 {[%emt 0:04:03]} Nbd7 {[%emt 0:00:31]} 19. Rf2 {[%emt 0:06:55]} Nc5 {[%emt 0:03:23]} 20. Qf1 {[%emt 0:01:21]} Nfd7 {[%emt 0:06:00]} 21. Rc2 {[%emt 0:05:56]} Ne5 {[%emt 0:03:54]} 22. Nxe6 {[%emt 0:06:00]} Qxe6 {[%emt 0:00:13]} 23. f4 {[%emt 0:04:11]} Ng4 {[%emt 0:03:52]} 24. f5 {[%emt 0:00:07]} Qh6 {[%emt 0:01:07]} 25. Bxd5 {[%emt 0:02:55]} Nxb3 {[%emt 0:00:34]} 26. Re2 {[%emt 0:00:48]} Nxa1 {[%emt 0:00:29]} 27. Bxa1 {[%emt 0:00:20]} Nxe3 {[%emt 0:01:05]} 28. Nxe3 {[%emt 0:00:08]} Rxe3 {[%emt 0:00:12]} 29. Bd4 {[%emt 0:02:37]} Rxe2 {[%emt 0:01:50]} 30. Qxe2 {[%emt 0:00:04]} Qc1+ {[%emt 0:00:26]} 0-1